Cogmind - Beta 10.1 @@@ ROGUE MODE // 2020.10.17 @ 00:55:08 Player: ELF Result: Destroyed by Enhanced Grunt with Neutron Cannon Performance ------------- Evolutions (3) 1500 Regions Visited (13) 2600 Robots Destroyed (154) 770 Value Destroyed (5285) 5285 Prototype IDs (26) 520 Alien Tech Used (0) 0 Bonus (2372) 2372 TOTAL SCORE: 13047 Bonus ------- High Alert Combat Kills 285 Follower Combat Kills 426 Entered Garrisons 400 Used RIF Installer 1000 Aligned with FarCom 300 Met Data Miner 300 Friendly Fire -339 Cogmind --------- Core Integrity 0/700 Matter 237/300 Energy 34/100 System Corruption 21% Temperature Cool (6) Movement Core (300) Ox5 Location -7/Data Miner Parts ------- > --- POWER (1) -------- (None) > --- PROPULSION (3) --- (None) > --- UTILITY (7) ------ Large Storage Unit Hacking Suite Relay Coupler [NC] (33) > --- WEAPON (2) ------- (None) > --- INVENTORY (10) --- High-capacity Matter Pod (200) AWS/Gauss Heavy Missile Launcher Remote Datajack Peak State ------------ > --- POWER ------------ Reinforced Deuterium Engine > --- PROPULSION ------- Armored Treads Armored Treads Armored Treads > --- UTILITY ---------- Large Storage Unit Large Storage Unit Hacking Suite System Shield System Shield Relay Coupler [Behemoth] Relay Coupler [Behemoth] > --- WEAPON ----------- Remote Datajack Spear > --- INVENTORY -------- Improved Deuterium Engine Armored Treads Armored Treads Armored Treads High-capacity Matter Pod Improved Light Armor Plating Improved Light Armor Plating Improved Medium Armor Plating Relay Coupler [NC] Relay Coupler [Duelist] AWS/Gauss Heavy Missile Launcher [Rating: 48] Favorites ----------- Power Reinforced Deuterium Engine Engine Reinforced Deuterium Engine Power Core Light Nuclear Core Propulsion Armored Treads Treads Armored Treads Leg Aluminum Leg Utility Large Storage Unit Device Experimental Sensor Array Storage Large Storage Unit Processor Improved Melee Analysis Suite Hackware Hacking Suite Protection Hardened Medium Armor Plating Weapon Remote Datajack Energy Gun Small Laser Energy Cannon YOLO Cannon Ballistic Gun AWS/Gauss Launcher Mini Grenade Launcher Special Weapon Remote Datajack Impact Weapon Great Maul Slashing Weapon Scythe Piercing Weapon Spear Special Melee Weapon Improved Datajack Build | -11 -10 -10 -10 -9 -8 -8 -8 -7 -7 -7 -7 -7 -7 ------- Run | Scr Mat Min Exi Min Mat Gar Mat Fac Gar Fac Low Low Dat Slots Evolved 6 | . . . . . 4 . . 2 . . . . . Power . | . . . . . . . . . . . . . . Propulsion 1 | . . . . . 1 . . . . . . . . Utility 5 | . . . . . 3 . . 2 . . . . . Weapon . | . . . . . . . . . . . . . . Parts Attached 146 | 7 15 1 3 . 22 12 15 14 10 22 6 9 10 Power 13 | 2 2 1 . . 2 . 2 2 1 . . . 1 Engine 11 | 2 2 . . . 1 . 2 2 1 . . . 1 Core 2 | . . 1 . . 1 . . . . . . . . Reactor . | . . . . . . . . . . . . . . Propulsion 34 | 2 3 . . . 5 7 3 3 2 6 . 1 2 Treads 28 | 2 3 . . . 5 1 3 3 2 6 . 1 2 Leg 6 | . . . . . . 6 . . . . . . . Wheel . | . . . . . . . . . . . . . . Hover . | . . . . . . . . . . . . . . Flight . | . . . . . . . . . . . . . . Utility 59 | 1 4 . . . 7 3 7 8 5 12 3 5 4 Device 1 | . . . . . 1 . . . . . . . . Storage 7 | 1 3 . . . . . 1 . . 2 . . . Processor 6 | . 1 . . . 1 . 1 . 2 . . . 1 Hackware 19 | . . . . . 3 . . 4 . 6 2 1 3 Protection 26 | . . . . . 2 3 5 4 3 4 1 4 . Artifact . | . . . . . . . . . . . . . . Weapon 40 | 2 6 . 3 . 8 2 3 1 2 4 3 3 3 Energy Gun 5 | 1 3 . . . 1 . . . . . . . . Energy Cannon 1 | . . . 1 . . . . . . . . . . Ballistic Gun 8 | 1 3 . 2 . 2 . . . . . . . . Ballistic Cannon . | . . . . . . . . . . . . . . Launcher 8 | . . . . . 1 2 2 . 1 . 1 1 . Special Weapon 5 | . . . . . . . . 1 1 2 . . 1 Impact Weapon 2 | . . . . . 2 . . . . . . . . Slashing Weapon 5 | . . . . . . . 1 . . 1 1 1 1 Piercing Weapon 4 | . . . . . . . . . . 1 1 1 1 Special Melee Weapon 2 | . . . . . 2 . . . . . . . . Unidentified Prototypes 5 | . . . 2 . 3 . . . . . . . . Parts Lost 46 | . 3 . . . 4 9 3 3 6 1 . 3 14 Power 8 | . 1 . . . 1 1 . 2 1 . . . 2 Propulsion 12 | . . . . . 2 5 . . . . . 1 4 Utility 20 | . . . . . 1 2 2 1 4 1 . 2 7 Weapon 6 | . 2 . . . . 1 1 . 1 . . . 1 Highest Loss Streak 14 | . 2 . . . 2 3 2 2 3 1 . 2 14 Average Slot Usage (%) 94 | . 96 100 89 85 93 87 95 99 93 97 99 97 89 Engine 6 | . 13 9 . . 5 . 6 6 6 7 7 7 6 Core 2 | . . 4 14 14 3 4 . . . . . . . Treads 23 | . 27 28 28 28 26 15 25 23 23 22 23 23 21 Storage 17 | . 17 28 28 28 18 18 18 15 15 15 15 15 15 Processor 1 | . 8 . . . 6 . . . 3 2 . . . Hackware 16 | . . . . . 11 18 13 18 9 30 29 27 21 Protection 8 | . . . . . 8 8 11 18 20 4 8 9 14 Energy Gun 1 | . 7 28 10 . . . . . . . . . . Ballistic Gun 3 | . 20 . 7 14 4 . . . . . . . . Launcher 2 | . . . . . 1 8 9 4 1 . . . . Special Weapon 2 | . . . . . . . . 2 4 4 7 4 . Impact Weapon 1 | . . . . . 4 9 1 . . . . . . Slashing Weapon 3 | . . . . . . . 7 7 7 2 2 6 6 Piercing Weapon 1 | . . . . . . . . . . 4 4 . 2 Naked Turns . | . . . . . . . . . . . . . . Heaviest Build 74 | 11 39 39 47 47 56 55 74 69 66 66 67 64 57 Greatest Support 60 | 40 40 40 40 40 60 60 60 60 60 60 60 60 60 Greatest Overweight (x) 10 | . 10 . 1 1 1 4 2 1 1 1 1 1 5 Average Overweight (x) . | . . . . 1 . . . . . . . . . Largest Inventory Capacity 16 | 6 16 16 16 16 16 16 16 16 16 16 16 16 16 Average Capacity 15 | 5 8 16 16 16 16 16 16 16 16 16 16 16 15 Most Carried 16 | 4 9 10 12 16 16 16 16 16 16 16 16 16 13 Average Carried 13 | 2 5 9 10 12 14 15 15 14 15 15 14 14 12 Final Capacity 16 | 6 16 16 16 16 16 16 16 16 16 16 16 16 10 Final Carried 16 | 2 9 9 11 16 13 16 13 16 16 13 16 13 5 Class Distribution -------------------- 58% | Hacker-Mutant 22% | Mutant 10% | Scavenger-Mutant 8% | Bothacker-Mutant Dominant Class ---------------- Mutant | -10/Materials Scavenger-Mutant | -10/Mines Mutant | -10/Exiles Mutant | -9/Mines Scavenger-Mutant | -8/Materials Hacker-Mutant | -8/Garrison Hacker-Mutant | -8/Materials Hacker-Mutant | -7/Factory Bothacker-Mutant | -7/Garrison Hacker-Mutant | -7/Factory Hacker-Mutant | -7/Lower Caves Hacker-Mutant | -7/Lower Caves Hacker-Mutant | -7/Data Miner Resources | -11 -10 -10 -10 -9 -8 -8 -8 -7 -7 -7 -7 -7 -7 ----------- Run | Scr Mat Min Exi Min Mat Gar Mat Fac Gar Fac Low Low Dat Matter Collected 3467 | 322 520 60 . 30 215 300 455 167 356 328 499 215 . Remotely . | . . . . . . . . . . . . . . Salvage Created 5764 | 183 631 31 . 223 1245 712 1318 427 416 283 62 233 . Parts 282 | 12 47 6 . 2 63 19 75 11 24 15 1 7 . Haulers Intercepted 11 | . 2 . . . 3 . 6 . . . . . . Recyclers Shooed 3 | . . . . . . . 3 . . . . . . Parts Field Recycled . | . . . . . . . . . . . . . . Retrieved Matter . | . . . . . . . . . . . . . . Parts Self-Destructed 20 | . . . . . . . . . . . 8 12 . Prevented . | . . . . . . . . . . . . . . Kills | -11 -10 -10 -10 -9 -8 -8 -8 -7 -7 -7 -7 -7 -7 ------- Run | Scr Mat Min Exi Min Mat Gar Mat Fac Gar Fac Low Low Dat Combat Hostiles Destroyed 115 | . 16 2 . 10 27 15 15 7 13 5 1 4 . Melee 29 | . . . . . 1 2 5 7 5 5 . 4 . Guns 47 | . 16 2 . 10 19 . . . . . . . . AOE 29 | . . . . . 4 8 8 . 8 . 1 . . Classes Destroyed 14 | 3 5 . . 1 3 . 1 1 . . . . . Worker 9 | 2 . . . . 2 . 5 . . . . . . Builder 7 | . . . . . . . 7 . . . . . . Tunneler 2 | 2 . . . . . . . . . . . . . Hauler 11 | . 2 . . . 3 . 6 . . . . . . Recycler 4 | 1 1 . . . . . 1 1 . . . . . Operator 1 | . 1 . . . . . . . . . . . . Watcher 3 | . 2 . . . 1 . . . . . . . . Swarmer 29 | . 9 2 . 3 10 . 5 . . . . . . Grunt 54 | . 7 . . 2 11 11 7 4 8 1 . 3 . Brawler 8 | . . . . . 1 . 2 1 3 . 1 . . Sentry 12 | . . . . . 5 1 1 1 1 2 . 1 . Hunter 4 | . . . . . 1 3 . . . . . . . Programmer 4 | . . . . . . . . 1 1 2 . . . Assembled 6 | . . . . 6 . . . . . . . . . Best Kill Streak 8 | 5 4 2 . 2 8 3 7 3 5 1 1 3 . Combat Bots Only 6 | . 3 2 . 2 6 3 4 3 5 1 1 3 . Max Kills in Single Turn 3 | 1 2 1 . 1 3 2 3 1 2 1 1 1 . Gunslinging 1 | . 1 . . . . . . . . . . . . Exploded 3 | . . . . . 3 2 2 . 2 . 1 . . Melee 1 | . . . . . 1 1 1 1 1 1 . 1 . Uniques/NPCs Destroyed . | . . . . . . . . . . . . . . Combat | -11 -10 -10 -10 -9 -8 -8 -8 -7 -7 -7 -7 -7 -7 -------- Run | Scr Mat Min Exi Min Mat Gar Mat Fac Gar Fac Low Low Dat Damage Taken 9087 | . 713 . . 48 947 1460 911 760 916 1114 195 428 1595 Core 1370 | . 143 . . 19 126 313 43 104 67 153 . 35 367 Absorbed by Shields 71 | . . . . . . 71 . . . . . . . Core Remaining (%) 49 | 100 . . . 35 . . 12 . . . . . . Volleys Fired 242 | 10 87 3 . . 2 35 56 . 11 28 6 2 2 Largest 2 | 2 2 2 . . 1 1 1 . 1 1 1 1 1 Hottest 80 | 60 60 80 . . 30 36 36 . 30 30 39 39 30 Shots Fired 443 | 20 172 6 . 29 74 35 57 . 11 28 6 3 2 Gun 299 | 20 172 6 . 29 72 . . . . . . . . Cannon . | . . . . . . . . . . . . . . Launcher 109 | . . . . . 2 35 57 . 11 . 1 3 . Special 35 | . . . . . . . . . . 28 5 . 2 Kinetic 265 | 10 154 . . 29 72 . . . . . . . . Thermal 34 | 10 18 6 . . . . . . . . . . . Explosive 26 | . . . . . 2 7 2 . 11 . 1 3 . Electromagnetic 83 | . . . . . . 28 55 . . . . . . Robot Hit Streak 18 | 4 10 5 . 18 17 11 5 . 5 11 5 . 6 Robot Miss Streak 4 | 2 4 2 . 2 2 1 2 . 1 2 1 . . Penetration Max . | . . . . . . . . . . . . . . Secondary Targets 5 | . 4 1 . . . . . . . . . . . Max Gunslinging Chain 1 | . 1 1 . . . . . . . . . . . Autonomous 102 | . . . . 29 73 . . . . . . . . Shots Hit Robots 459 | 13 114 3 . 26 96 40 37 35 31 44 5 12 3 Core Hits 234 | 8 38 2 . 11 36 28 47 11 34 9 4 6 . Critical Hits 10 | . 1 . . . 3 . . 3 2 1 . . . Critical Kills 4 | . . . . . 1 . . 2 . 1 . . . Critical Parts Destroyed 5 | . 1 . . . 2 . . . 2 . . . . Melee Attacks 261 | . . . . . 38 37 35 43 26 39 9 19 15 Impact 75 | . . . . . 36 37 2 . . . . . . Slashing 134 | . . . . . . . 33 43 26 9 . 19 4 Piercing 50 | . . . . . . . . . . 30 9 . 11 Sneak Attacks 11 | . . . . . 7 . 3 1 . . . . . Combat Hostiles 1 | . . . . . . . 1 . . . . . . Follow-up Attacks 1 | . . . . . . . . . . . . . 1 Damage Inflicted 14006 | 148 1024 22 . 724 3315 1886 2690 1106 1834 672 136 415 34 Guns 3900 | 148 1024 22 . 724 1982 . . . . . . . . Cannons . | . . . . . . . . . . . . . . Explosions 4997 | . . . . . 194 1299 2140 . 1228 . 136 . . Melee 5109 | . . . . . 1139 587 550 1106 606 672 . 415 34 Ramming . | . . . . . . . . . . . . . . Kinetic 3627 | 38 883 . . 724 1982 . . . . . . . . Thermal 558 | 110 141 22 . . . 45 240 . . . . . . Explosive 2080 | . . . . . 194 416 106 . 1228 . 136 . . Electromagnetic 2632 | . . . . . . 838 1794 . . . . . . Impact 1873 | . . . . . 1139 587 147 . . . . . . Slashing 2821 | . . . . . . . 403 1106 606 257 . 415 34 Piercing 415 | . . . . . . . . . . 415 . . . Highest Corruption 21 | . . . . . . . 9 5 16 21 21 21 21 Average Corruption 16 | . . . . . . . 5 4 12 18 21 21 21 Corruption Purged . | . . . . . . . . . . . . . . Effects 465 | . . . . . . . 22 24 69 124 142 66 18 Message Errors 96 | . . . . . . . 6 8 18 18 31 13 2 Matter Fused 94 | . . . . . . . 3 5 21 25 26 10 4 Heat Flow Errors 37 | . . . . . . . 1 2 6 9 11 6 2 Energy Discharges 37 | . . . . . . . 2 2 5 10 10 7 1 Parts Rejected 4 | . . . . . . . . . . 3 . . 1 Data Loss (minor) 58 | . . . . . . . 5 5 3 17 19 8 1 Data Loss (major) 19 | . . . . . . . 2 . 1 2 10 3 1 Misfires 2 | . . . . . . . 1 . . . . 1 . Alerts 5 | . . . . . . . . . 2 . 2 1 . Misdirections 77 | . . . . . . . . . 9 23 31 11 3 Targeting Errors 36 | . . . . . . . 2 2 4 17 2 6 3 Overload Shots . | . . . . . . . . . . . . . . Overflow Damage 493 | . . . . . 223 32 186 27 14 1 . 10 . Projectiles . | . . . . . . . . . . . . . . Explosions 79 | . . . . . . 4 52 . 14 . . 9 . Melee 414 | . . . . . 223 28 134 27 . 1 . 1 . Knockbacks 3 | . . . . . 2 . 1 . . . . . . Impact 3 | . . . . . 2 . 1 . . . . . . Kinetic . | . . . . . . . . . . . . . . Secondary . | . . . . . . . . . . . . . . Self-Inflicted Damage 347 | . . . . . . 44 225 . 17 . 13 48 . Shots 25 | . . . . . . 5 16 . 1 . 1 2 . Rammed . | . . . . . . . . . . . . . . Targets Rammed . | . . . . . . . . . . . . . . Kicked . | . . . . . . . . . . . . . . Crushed . | . . . . . . . . . . . . . . Highest Temperature 277 | 40 40 72 . . 13 23 183 142 241 251 277 246 167 Average Temperature 69 | 19 11 37 . . 10 12 57 53 77 69 104 106 74 Received Heat Transfer 2466 | . 264 . . 12 297 603 261 159 258 264 18 120 210 Effects 1 | . . . . . . . . . . . 1 . . Interference 1 | . . . . . . . . . . . 1 . . Siege Activations . | . . . . . . . . . . . . . . Robots Corrupted 5 | . . . . . . 3 2 . . . . . . Combat Hostiles 5 | . . . . . . 3 2 . . . . . . Parts Fried 17 | . . . . . 3 8 6 . . . . . . Impact Corruptions 14 | . . . . . 8 5 1 . . . . . . Robots Melted . | . . . . . . . . . . . . . . Combat Hostiles . | . . . . . . . . . . . . . . Parts Melted 2 | . 1 . . . . . . . . . . 1 . Heat Transferred 1275 | 250 325 50 . . . 50 600 . . . . . . Parts Sabotaged . | . . . . . . . . . . . . . . Parts Stolen . | . . . . . . . . . . . . . . Parts Stripped . | . . . . . . . . . . . . . . Power Chain Reactions 15 | . . . . . . 1 14 . . . . . . Missiles Intercepted . | . . . . . . . . . . . . . . Alert | -11 -10 -10 -10 -9 -8 -8 -8 -7 -7 -7 -7 -7 -7 ------- Run | Scr Mat Min Exi Min Mat Gar Mat Fac Gar Fac Low Low Dat Peak Influence 1025 | 25 288 175 . 125 500 1025 504 216 372 815 . . . Initial 499 | . 16 26 . . 48 281 499 134 67 195 . . . Average 264 | 8 137 65 . 27 347 686 238 94 309 280 . . . Maximum Alert Level 3 | . 1 . . . 2 3 2 1 1 3 . . . Low Security (%) 47 | 100 81 100 . 100 9 . 34 94 8 47 . . . Level 1 31 | . 18 . . . 54 9 55 5 91 17 . . . Level 2 12 | . . . . . 36 39 10 . . 18 . . . Level 3 8 | . . . . . . 51 . . . 16 . . . Level 4 . | . . . . . . . . . . . . . . Level 5 . | . . . . . . . . . . . . . . High Security . | . . . . . . . . . . . . . . Max Security . | . . . . . . . . . . . . . . Squads Dispatched 27 | . 4 . . . 2 . 10 3 . 8 . . . Investigation 9 | . 3 . . . 1 . 2 2 . 1 . . . Extermination 3 | . . . . . . . . 1 . 2 . . . Reinforcement 8 | . 1 . . . 1 . 5 . . 1 . . . Assault 3 | . . . . . . . . . . 3 . . . Garrison 4 | . . . . . . . 3 . . 1 . . . Intercept . | . . . . . . . . . . . . . . Construction Impeded 3 | . . . . . . . 3 . . . . . . Haulers Reinforced . | . . . . . . . . . . . . . . Stealth | -11 -10 -10 -10 -9 -8 -8 -8 -7 -7 -7 -7 -7 -7 --------- Run | Scr Mat Min Exi Min Mat Gar Mat Fac Gar Fac Low Low Dat Distress Signals 2 | . 2 . . . . . . . . . . . . Communications Jammed . | . . . . . . . . . . . . . . Distress Signals . | . . . . . . . . . . . . . . Times Spotted 187 | . 29 4 . 10 31 23 25 8 14 23 6 6 8 Peak Tracking Total 6 | . 5 2 . 3 5 5 3 3 6 4 3 3 4 Tactical Retreats 19 | . 2 . . . 1 6 6 2 1 1 . . . Traps | -11 -10 -10 -10 -9 -8 -8 -8 -7 -7 -7 -7 -7 -7 ------- Run | Scr Mat Min Exi Min Mat Gar Mat Fac Gar Fac Low Low Dat Traps Triggered 12 | . 3 . . . 1 3 1 1 . 3 . . . Indirectly 3 | . . . . . . 2 1 . . . . . . Trap Hack Attempts . | . . . . . . . . . . . . . . Triggered . | . . . . . . . . . . . . . . Disarmed . | . . . . . . . . . . . . . . Reprogrammed . | . . . . . . . . . . . . . . Reused 2 | . . . . 2 . . . . . . . . . Traps Extracted . | . . . . . . . . . . . . . . Installed 4 | . . . . 4 . . . . . . . . . Triggered 3 | . . . . . . 2 1 . . . . . . Machines | -11 -10 -10 -10 -9 -8 -8 -8 -7 -7 -7 -7 -7 -7 ---------- Run | Scr Mat Min Exi Min Mat Gar Mat Fac Gar Fac Low Low Dat Machines Disabled 23 | . . 1 . 1 4 6 4 . 2 3 . 1 1 Max in Single Turn 2 | . . . . . 1 2 1 . 1 . . 1 1 Garrison Access 1 | . . . . . . . . . . 1 . . . Garrison Relay 4 | . . . . . . 2 . . 2 . . . . Machines Sabotaged . | . . . . . . . . . . . . . . Garrisons Compromised 1 | . . . . . . . . . . 1 . . . Overloaded Fab Kills . | . . . . . . . . . . . . . . Fab Network Shutdowns 1 | . . . . . . . . . . 1 . . . Hacking | -11 -10 -10 -10 -9 -8 -8 -8 -7 -7 -7 -7 -7 -7 --------- Run | Scr Mat Min Exi Min Mat Gar Mat Fac Gar Fac Low Low Dat Machines Accessed 41 | . 9 . 1 . 7 . 3 5 . 11 . 1 4 Terminals 23 | . 7 . . . 5 . 2 2 . 6 . 1 . Fabricators 3 | . . . . . . . . 1 . 2 . . . Repair Stations 2 | . . . . . . . 1 . . 1 . . . Recycling Units 3 | . 2 . . . . . . . . 1 . . . Scanalyzers 2 | . . . . . 1 . . 1 . . . . . Garrison Access 3 | . . . . . 1 . . 1 . 1 . . . Total Hacks 171 | . 16 . 4 . 28 . 20 14 . 52 . 9 28 Successful 120 | . 9 . 4 . 18 . 14 10 . 33 . 4 28 Failed 50 | . 7 . . . 10 . 6 4 . 18 . 5 . Catastrophic 7 | . 2 . . . 1 . 2 . . 2 . . . Database Lockouts 1 | . . . . . . . . . . 1 . . . Manual 88 | . 17 . 1 . 15 . 15 7 . 25 . 8 . Terminals 95 | . 14 . . . 17 . 16 5 . 34 . 9 . Fabricators 9 | . . . . . . . . 3 . 6 . . . Repair Stations 7 | . . . . . . . 4 . . 3 . . . Recycling Units 4 | . 2 . . . . . . . . 2 . . . Scanalyzers 10 | . . . . . 8 . . 2 . . . . . Garrison Access 14 | . . . . . 3 . . 4 . 7 . . . Terminal Hacks 65 | . 4 . 4 . 7 . 5 1 . 13 . 3 28 Record 17 | . . . 4 . . . . . . 1 . 1 11 Part Schematic 10 | . . . . . . . . . . 1 . 1 8 Robot Schematic 8 | . . . . . . . . . . 2 . . 6 Robot Analysis 2 | . 2 . . . . . . . . . . . . Prototype ID Bank 6 | . 2 . . . . . . . . 1 . . 3 Branch Access Points 2 | . . . . . 1 . . . . 1 . . . Machine Index 1 | . . . . . . . . . . 1 . . . Terminal Index 3 | . . . . . 1 . 1 . . 1 . . . Fabricator Index 1 | . . . . . . . . . . 1 . . . Garrison Index 1 | . . . . . . . . 1 . . . . . Alert Level 2 | . . . . . 1 . . . . 1 . . . Unreport Threat 3 | . . . . . 1 . 2 . . . . . . Locate Traps 3 | . . . . . 1 . 1 . . 1 . . . Zone Layout 6 | . . . . . 2 . 1 . . 2 . 1 . Fabricator Hacks 8 | . . . . . . . . 3 . 5 . . . Load Schematic 3 | . . . . . . . . 1 . 2 . . . Build 5 | . . . . . . . . 2 . 3 . . . Repair Station Hacks 6 | . . . . . . . 4 . . 2 . . . Scan Component 3 | . . . . . . . 2 . . 1 . . . Repair 3 | . . . . . . . 2 . . 1 . . . Recycling Unit Hacks 1 | . . . . . . . . . . 1 . . . Report Inventory 1 | . . . . . . . . . . 1 . . . Scanalyzer 10 | . . . . . 8 . . 2 . . . . . Insert Component 6 | . . . . . 5 . . 1 . . . . . Analyze 4 | . . . . . 3 . . 1 . . . . . Garrison Access Hacks 4 | . . . . . 1 . . 1 . 2 . . . Unlock Access 3 | . . . . . 1 . . 1 . 1 . . . Coupler Status 1 | . . . . . . . . . . 1 . . . Unauthorized Hacks 25 | . 5 . . . 2 . 5 3 . 9 . 1 . Terminals 19 | . 3 . . . 1 . 5 2 . 7 . 1 . Track 8 | . 2 . . . . . 2 1 . 2 . 1 . Assimilate 1 | . . . . . . . . . . 1 . . . Botnet 7 | . . . . . 1 . 2 1 . 3 . . . Operators 3 | . 1 . . . . . 1 . . 1 . . . Fabricators . | . . . . . . . . . . . . . . Repair Stations . | . . . . . . . . . . . . . . Recycling Units 2 | . 2 . . . . . . . . . . . . Tunnel 2 | . 2 . . . . . . . . . . . . Scanalyzers . | . . . . . . . . . . . . . . Garrison Access 4 | . . . . . 1 . . 1 . 2 . . . Reprogram 4 | . . . . . 1 . . 1 . 2 . . . Data Cores Recovered . | . . . . . . . . . . . . . . Used . | . . . . . . . . . . . . . . Hacking Detections 32 | . 7 . . . 7 . 2 5 . 10 . 1 . Full Trace Events 3 | . 1 . . . . . . 1 . 1 . . . Feedback Events . | . . . . . . . . . . . . . . Feedback Blocked . | . . . . . . . . . . . . . . Robot Schematics Acquired 8 | . . . . . . . . . . 2 . . 6 Robots Built . | . . . . . . . . . . . . . . Matter . | . . . . . . . . . . . . . . Time . | . . . . . . . . . . . . . . Total Robot Build Rating . | . . . . . . . . . . . . . . Part Schematics Acquired 14 | . . . . . 3 . . 1 . 1 . 1 8 Parts Built 5 | . . . . . . . . 2 . 3 . . . Matter 730 | . . . . . . . . 292 . 438 . . . Time 217 | . . . . . . . . 72 . 145 . . . Total Part Build Rating 15 | . . . . . . . . 6 . 9 . . . Parts Repaired 3 | . . . . . . . 2 . . 1 . . . Time 89 | . . . . . . . 70 . . 19 . . . Parts Recycled . | . . . . . . . . . . . . . . Recycled Matter . | . . . . . . . . . . . . . . Retrieved Matter . | . . . . . . . . . . . . . . Retrieved Components . | . . . . . . . . . . . . . . Parts Scanalyzed 4 | . . . . . 3 . . 1 . . . . . Part Schematics Acquired 4 | . . . . . 3 . . 1 . . . . . Parts Damaged . | . . . . . . . . . . . . . . Bothacking | -11 -10 -10 -10 -9 -8 -8 -8 -7 -7 -7 -7 -7 -7 ------------ Run | Scr Mat Min Exi Min Mat Gar Mat Fac Gar Fac Low Low Dat Used RIF Installer 2 | . . . . . . 1 . . 1 . . . . Structural Interface 1 | . . . . . . . . . 1 . . . . Robots Hacked 18 | . . . . . 1 . . . . 14 2 . 1 Non-combat 15 | . . . . . 1 . . . . 14 . . . Combat 3 | . . . . . . . . . . . 2 . 1 Robot Hacks Applied 25 | . . . . . 1 . . . . 20 3 . 1 parse_system 3 | . . . . . . . . . . . 2 . 1 no_distress 5 | . . . . . 1 . . . . 4 . . . ignore_repairs 1 | . . . . . . . . . . 1 . . . map_walls 4 | . . . . . . . . . . 4 . . . map_earth 2 | . . . . . . . . . . 2 . . . drop_inventory 1 | . . . . . . . . . . 1 . . . find_recycling 2 | . . . . . . . . . . 2 . . . map_route 2 | . . . . . . . . . . 2 . . . mark_security 2 | . . . . . . . . . . 2 . . . relay_feed 1 | . . . . . . . . . . 1 . . . link_fov 1 | . . . . . . . . . . 1 . . . formatsys_high 1 | . . . . . . . . . . . 1 . . Relay Couplers Released 14 | . . . . . . 8 . . 6 . . . . Machine Destruction 14 | . . . . . . 8 . . 6 . . . . Attached 6 | . . . . . . . . . . 2 2 . 2 Robots Rewired . | . . . . . . . . . . . . . . Allies Hacked . | . . . . . . . . . . . . . . Hacks Repelled 1 | . . . . . . . . . . 1 . . . Allies | -11 -10 -10 -10 -9 -8 -8 -8 -7 -7 -7 -7 -7 -7 -------- Run | Scr Mat Min Exi Min Mat Gar Mat Fac Gar Fac Low Low Dat Total Allies 13 | . . 2 . 3 . . . 3 . 4 1 . . Largest Group 4 | . . 2 1 3 1 . . 3 3 4 1 1 . Highest-Rated Group 84 | . . 45 31 40 16 . . 48 48 84 81 81 . Highest-Rated Ally 81 | . . 31 31 16 16 . . 16 16 32 81 81 . Total Orders . | . . . . . . . . . . . . . . Ally Attacks 62 | . . 9 . 19 3 . . . 4 16 3 8 . Total Damage 1998 | . . 145 . 197 46 . . . 52 939 131 488 . Kills 20 | . . 3 . 4 1 . . . . 6 3 3 . Allies Corrupted . | . . . . . . . . . . . . . . Allies Melted . | . . . . . . . . . . . . . . Intel | -11 -10 -10 -10 -9 -8 -8 -8 -7 -7 -7 -7 -7 -7 ------- Run | Scr Mat Min Exi Min Mat Gar Mat Fac Gar Fac Low Low Dat Robot Analysis Total 2 | . 2 . . . . . . . . . . . . Derelict Logs Recovered 5 | . . 1 . 2 . . . . . . 1 1 . Drone Launches . | . . . . . . . . . . . . . . Drone Recoveries . | . . . . . . . . . . . . . . Exploration | -11 -10 -10 -10 -9 -8 -8 -8 -7 -7 -7 -7 -7 -7 ------------- Run | Scr Mat Min Exi Min Mat Gar Mat Fac Gar Fac Low Low Dat Turns Passed 16886 | 137 1633 341 583 1194 1180 1457 1765 1076 1567 2016 2580 1094 263 Spaces Moved 8287 | 66 827 199 334 626 531 702 690 452 790 969 1393 585 123 Core 13 | 11 1 . . . . . . . . . . . 1 Treads 8059 | 55 826 199 334 626 531 525 652 452 790 969 1393 585 122 Legs 215 | . . . . . . 177 38 . . . . . . Wheels . | . . . . . . . . . . . . . . Hover . | . . . . . . . . . . . . . . Flight . | . . . . . . . . . . . . . . Fastest Speed 50 | 50 160 160 160 180 160 150 150 170 170 170 170 170 170 Average Speed 172 | 141 160 160 171 180 161 170 172 183 183 172 172 171 172 Slowest Speed 550 | 160 550 160 180 180 180 240 210 190 190 190 190 190 300 Overloaded Moves . | . . . . . . . . . . . . . . Propulsion Burnouts . | . . . . . . . . . . . . . . Robots Hopped . | . . . . . . . . . . . . . . Cave-ins Triggered . | . . . . . . . . . . . . . . Exploration Rate (%) 57 | 5 94 34 76 94 43 63 34 12 89 29 98 67 73 Regions Visited 13 Branch Regions 6 Pre-discovered Areas 6 | . 2 2 1 . . . . . . . . . 1 Known Exits Taken 4 | . . . . 1 1 . . 1 . 1 . . . Unknown Exits Taken 7 | 1 1 1 1 . . . 1 . . . 1 1 . Scrap Searched 4 | . . . . 1 . . . . . . 2 1 . Spaces Dug 64 | . . . . . 1 2 17 2 . 11 5 23 3 Terrain Destroyed 289 | . . . . 24 36 18 83 2 50 11 11 51 3 Melee 45 | . . . . . 1 2 17 2 . 11 5 4 3 Projectile 46 | . . . . 24 22 . . . . . . . . AOE 198 | . . . . . 13 16 66 . 50 . 6 47 . Terrain Rammed . | . . . . . . . . . . . . . . Walls Destroyed . | . . . . . . . . . . . . . . Machines Disabled . | . . . . . . . . . . . . . . Actions | -11 -10 -10 -10 -9 -8 -8 -8 -7 -7 -7 -7 -7 -7 --------- Run | Scr Mat Min Exi Min Mat Gar Mat Fac Gar Fac Low Low Dat Total 10231 | 92 984 216 349 694 784 854 1161 631 858 1246 1552 655 155 Wait 1089 | . 27 12 . 60 157 34 345 112 10 156 133 37 6 Move 8274 | 65 826 198 333 625 530 701 689 451 789 968 1392 584 123 Hop . | . . . . . . . . . . . . . . Pick Up 120 | 9 23 1 7 5 18 17 8 7 8 12 4 1 . Fast Attach 14 | . . . . . . . 5 1 2 6 . . . Attach 84 | 6 10 . 3 . 16 8 5 8 5 8 3 4 8 Detach 11 | . . . . . 5 . . 2 . 1 2 1 . Swap 48 | 1 5 1 . . 6 4 5 5 3 8 3 5 2 Drop 73 | 1 6 1 6 . 12 8 13 2 4 16 . 2 2 Fire 242 | 10 87 3 . . 2 35 56 . 11 28 6 2 2 Melee 258 | . . . . . 38 37 35 43 26 39 9 19 12 Ram . | . . . . . . . . . . . . . . Kick . | . . . . . . . . . . . . . . Crush . | . . . . . . . . . . . . . . Escape Stasis 11 | . . . . . . 7 . . . 4 . . . Rewire 3 | . . . . . . 3 . . . . . . . Trap 4 | . . . . 4 . . . . . . . . . Miscellaneous . | . . . . . . . . . . . . . . Route ------- -11/Scrapyard -10/Materials (discovered 4 exits: *Mat x3 / [*Min]) -10/Mines -10/Exiles -9/Mines (discovered 2 exits: *Mat x2) -8/Materials -8/Garrison (discovered 2 exits: *Mat x2) -8/Materials -7/Factory (discovered 2 exits: *Low / Gar) -7/Garrison (discovered 3 exits: *Fac x3) -7/Factory (discovered 3 exits: [*Fac] / *Low x2) -7/Lower Caves -7/Lower Caves -7/Data Miner (discovered 1 exit: [*Pro]) History --------- Turn | Location | Event 4 | -11/Scrapyard | Discovered new exit (range 16) 138 | -11/Scrapyard | Entered Materials 297 | -10/Materials | Discovered new exit (range 16) 303 | -10/Materials | Build established: Mutant 336 | -10/Materials | Identified exit to Materials 758 | -10/Materials | Discovered exit to Materials (range 14) 1363 | -10/Materials | Discovered exit to Materials (range 11) 1536 | -10/Materials | Core integrity fell below 50% 1617 | -10/Materials | Discovered new exit (range 9) 1771 | -10/Materials | Entered Mines 1827 | -10/Mines | Learned location of Zion (-6) 1863 | -10/Mines | Build established: Scavenger-Mutant 1946 | -10/Mines | Deemed a non-threat by the Exiles lab entrance 1946 | -10/Mines | Discovered new exit (range 5) 1992 | -10/Mines | Learned location of Storage (-9) 2112 | -10/Mines | Entered Exiles 2112 | -10/Exiles | Accompanied by 1 ally 2142 | -10/Exiles | Led the pair of lost Derelicts to a safe place 2149 | -10/Exiles | Met 8R-AWN 2178 | -10/Exiles | Met EX-HEX 2234 | -10/Exiles | Met EX-BIN 2285 | -10/Exiles | Aligned with FarCom system 2287 | -10/Exiles | Given EX-Vault access code 2327 | -10/Exiles | Opened EX-Vault 2335 | -10/Exiles | Found Prototype Ballistic Gun 2337 | -10/Exiles | Identified AWS/Gauss 2340 | -10/Exiles | Found Prototype Ballistic Cannon 2345 | -10/Exiles | Found Prototype Energy Cannon 2346 | -10/Exiles | Identified YOLO Cannon 2412 | -10/Exiles | Warned to stay clear of 0b10 Research branches 2464 | -10/Exiles | Met EX-DEC 2528 | -10/Exiles | Visited The Gauntlet 2649 | -10/Exiles | Build established: Mutant 2677 | -10/Exiles | Discovered new exit (range 11) 2695 | -10/Exiles | Left Exiles lab with AWS/Gauss 2695 | -10/Exiles | Entered Mines 2771 | -9/Mines | Learned location of 1 exit from Proximity Caves 2789 | -9/Mines | Assisted by bots powering up and referring to "LRC-V3" 2977 | -9/Mines | Discovered new exit (range 9) 2978 | -9/Mines | Assembled infested the area 2983 | -9/Mines | Assisted by a Guerilla fighting off Assembled 3108 | -9/Mines | Found a hidden stash of uninstalled traps 3321 | -9/Mines | Identified exit to Materials 3326 | -9/Mines | Found a damaged Exp. Sensor Array with a note attached 3330 | -9/Mines | Found Prototype Device 3417 | -9/Mines | Received a Rocket Launcher from a helpful Derelict 3889 | -9/Mines | Entered Materials 3889 | -8/Materials | Accompanied by 1 ally 3889 | -8/Materials | Evolved 4 slots: Propulsion x1, Utility x3 3891 | -8/Materials | Identified Exp. Sensor Array 4237 | -8/Materials | Build established: Scavenger-Mutant 4871 | -8/Materials | Identified exit to Garrison 5069 | -8/Materials | Entered Garrison 5088 | -8/Garrison | Triggered checkpoint 5142 | -8/Garrison | Lost 3 parts (1n1u1w) 5200 | -8/Garrison | Triggered checkpoint 5282 | -8/Garrison | Build established: Hacker-Mutant 5375 | -8/Garrison | Triggered checkpoint 5391 | -8/Garrison | Triggered checkpoint 5631 | -8/Garrison | Discovered new exit (range 15) 5764 | -8/Garrison | Triggered checkpoint 5830 | -8/Garrison | Lost 3 parts (1p2n) 5861 | -8/Garrison | Garrison Relay disabled 6121 | -8/Garrison | Core integrity fell below 50% 6470 | -8/Garrison | Triggered checkpoint 6488 | -8/Garrison | Discovered new exit (range 15) 6520 | -8/Garrison | Installed Relay Interface Framework 6526 | -8/Garrison | Entered Materials 6900 | -8/Materials | Discovered new exit (range 5) 6913 | -8/Materials | Core integrity fell below 20% 7124 | -8/Materials | Repaired Shock Bomb Launcher 7159 | -8/Materials | Repaired Mni. Grenade Launcher 7790 | -8/Materials | Garrison activated, responded to threat 8089 | -8/Materials | Build established: Mutant 8291 | -8/Materials | Entered Factory 8291 | -7/Factory | Evolved 2 slots: Utility x2 8588 | -7/Factory | Build established: Hacker-Mutant 8795 | -7/Factory | Discovered new exit (range 16) 9031 | -7/Factory | Identified exit to Garrison 9118 | -7/Factory | Fabricated Hacking Suite (x1) 9337 | -7/Factory | Fabricated Hacking Suite? 9367 | -7/Factory | Entered Garrison 9367 | -7/Garrison | Accompanied by 3 allies 9567 | -7/Garrison | Discovered new exit (range 10) 9684 | -7/Garrison | Triggered checkpoint 9690 | -7/Garrison | Triggered checkpoint 9734 | -7/Garrison | Lost 3 parts (1p1u1w) 9769 | -7/Garrison | Discovered new exit (range 10) 9793 | -7/Garrison | Expanded RIF knowledge: Structural Interface 9797 | -7/Garrison | System corruption reached 10% 9832 | -7/Garrison | Lost 3 parts (3u) 9961 | -7/Garrison | Garrison Relay disabled 10038 | -7/Garrison | Triggered checkpoint 10150 | -7/Garrison | Garrison Relay disabled 10237 | -7/Garrison | Discovered new exit (range 14) 10446 | -7/Garrison | Build established: Bothacker-Mutant 10934 | -7/Garrison | Entered Factory 11260 | -7/Factory | Repaired Scythe 11576 | -7/Factory | Fabricated System Shield (x1) 11639 | -7/Factory | Fabricated System Shield (x1) 11861 | -7/Factory | Fabricated Hacking Suite? 11943 | -7/Factory | Build established: Hacker-Mutant 12232 | -7/Factory | Local fabrication network quarantined 12410 | -7/Factory | Central database locked down 12506 | -7/Factory | Identified exit to Garrison 12545 | -7/Factory | Identified exit to Lower Caves 12609 | -7/Factory | Discovered new exit (range 11) 12934 | -7/Factory | First assault squad dispatched 12950 | -7/Factory | Entered Lower Caves 12951 | -7/Lower Caves | Encountered a Warlord checkpoint 13090 | -7/Lower Caves | Attracted the attention of an 0b10 checkpoint 13289 | -7/Lower Caves | Spotted B-75 Beast 13299 | -7/Lower Caves | Assimilated Beast 4a with formatsys_high 14702 | -7/Lower Caves | Discovered new exit (range 14) 15530 | -7/Lower Caves | Entered another Lower Caves area 15530 | -7/Lower Caves | Accompanied by 1 ally 15749 | -7/Lower Caves | Learned Factory terminal intel 15910 | -7/Lower Caves | Spotted B-75 Beast 16242 | -7/Lower Caves | Attracted the attention of an 0b10 checkpoint 16288 | -7/Lower Caves | Core integrity fell below 50% 16588 | -7/Lower Caves | Discovered new exit (range 7) 16624 | -7/Lower Caves | Entered Data Miner 16624 | -7/Data Miner | Discovered new exit (range 6) 16657 | -7/Data Miner | Met Data Miner 16694 | -7/Data Miner | Learned location of Section 7 (-3) 16694 | -7/Data Miner | Acquired the access code to Warlord's prototype stash 16728 | -7/Data Miner | Received God Mode back door access code from Data Miner 16813 | -7/Data Miner | Data Conduit disabled 16883 | -7/Data Miner | Core integrity fell below 20% 16887 | -7/Data Miner | Destroyed by Enhanced Grunt with Neutron Cannon Last Messages --------------- 16839_ The unstable cave ceiling collapses. 16843_ Arm. Treads destroyed. 16856_ System corrupted: Substantial component data lost. 16859_ Arm. Treads destroyed. 16866_ System corrupted: Spear targeting data glitched. 16867_ Imp. Light Armor Plating destroyed. 16869_ Mak. Sword follow-up attack on Enhanced Grunt. 16874_ Arm. Treads destroyed. 16875_ System corrupted: Heat flow error (+186). 16876_ Imp. Light Armor Plating destroyed. 16877_ Imp. Deuterium Engine destroyed. 16878_ Arm. Treads destroyed. 16880_ Dropped Lrg. Storage Unit. 16880_ Dropped Mak. Sword. 16884_ System Shield destroyed. 16884_ Spear destroyed. 16885_ System Shield destroyed. 16885_ Core Analyzer destroyed. 16885_ Relay Coupler [Duelist] destroyed. [Achievement: Tester] Map ----- +----------------------------------------------------+ | | | | | | | | | | | | | | | | | | | | | | | | | | | | | | | | | | | ????????????????????????????????????????? | | ????????????????????????????????????????? | | ????????????????????????????????????????? | | ????????????????????????????????????????? | | ???????????????????####?????####????????? | | #############???####""###?### #????????? | | """""""" =###### # # " ### #????????? | | """" """" " "; ; #gg ## < ##????????? | | """" g !@ ######???? | | " / #???? | | " #???? | | #???? | | " ##???? | | " """""""" """ """;#;##????? | | "" """"################?#?????? | | "" """""###??????????????????????? | | """" "#####????????????????????????? | | ###"## "#????????????????????????????? | | ??#"?## "#????????????????????????????? | | ??#"?## "#????????????????????????????? | | ?????# "#????????????????????????????? | | ????## "#????????????????????????????? | | ????# "#????????????????????????????? | | ????### "#????????????????????????????? | | ??????# "##???????????????????????????? | | ?????## ""#???????????????????????????? | | ??#?## ""#???????????????????????????? | | ?##"#"X ""#???????????????????????????? | | ?""""" "####????????????????????????? | | ?""""" X"""""????????????????????????? | | ?##"#"X "##"#????????????????????????? | | ??#?## X""""#????????????????????????? | | ?????## "##"#????????????????????????? | +----------------------------------------------------+ Best States ------------- Heat Dissipation 34 Energy Generation 16 Energy Capacity 290 Matter Stores 300 Matter Capacity 300 Sight Range 16 Robot Scan Range 30 Terrain Scan Density 10 Armor Coverage 675 Evasion (%) 50 Melee Accuracy 6 Armor Integrity Analysis 33 Recoil Reduction 3 Offensive Hacking 30 Defensive Hacking 20 Relay Coupler Types 24 Relay Coupler Value 1 Item Schematics ----------------- Exp. Sensor Array | -8/Materials | Scanalyzed Imp. Datajack | -8/Materials | Scanalyzed Hacking Suite | -8/Materials | Scanalyzed Hrd. Medium Armor Plating | -7/Factory | Scanalyzed System Shield | -7/Factory | Hacked System Backup Module | -7/Lower Caves | Hacked Combat Drone Bay | -7/Data Miner | Free Lgt. Regenerative Plating | -7/Data Miner | Free Exp. Flexi-carbon Leg | -7/Data Miner | Free Cmb. Gravmag System | -7/Data Miner | Free Exp. Cesium-ion Thruster | -7/Data Miner | Free Triangulator | -7/Data Miner | Free Exp. Terrain Scan Processor | -7/Data Miner | Free Exp. Targeting Computer | -7/Data Miner | Free Robot Schematics ------------------ B-48 Gladiator | -7/Factory | Hacked P-60 Hacker | -7/Factory | Hacked S-27 Virus | -7/Data Miner | Free G-50 Soldier | -7/Data Miner | Free G-67 Veteran | -7/Data Miner | Free L-41 Fighter | -7/Data Miner | Free H-66 Slayer | -7/Data Miner | Free I-36 Angel | -7/Data Miner | Free Fabricated ------------ Hacking Suite | x1 | -7/Factory Hacking Suite | x1 | -7/Factory System Shield | x1 | -7/Factory System Shield | x1 | -7/Factory Hacking Suite | x1 | -7/Factory Alien Tech Used ----------------- None Achievements -------------- Tester Challenges ------------ None Game ------ Seed GuidanceWaveRifle Manual? 0 Play Time 02:04:33 Cumulative 56.4 hours Start 2020.10.16 @ 22:43:35 End 2020.10.17 @ 00:55:08 Sessions 1 Manual Loads 0 Difficulty Rogue Special Mode None Game No. 40 Rogue 40 Adventurer 0 Explorer 0 Win Type - Total 0 Types 0/0/0/0/0/0/0/0/0 Lore% 39 Gallery% 51 Achievement% 43 Wizard Run 0 Options --------- ASCII 0 Keyboard 0 Movement Numpad Keybinds 0 Fullscreen 2 Font 18/SmallcapsGlow Map View 76x50 Tactical HUD 1 Map Filters NONE Filters NONE Steam 1 RUN: 4435a7e1-5605-4840-b671-63e724c349bb